Cogmind - Beta 14 @@@ ROGUE MODE // 2024.09.20 @ 12:21:21 // Winter2019/RPGLIKE Player: ZarZap Result: Destroyed by Y-45 Defender with Beam Rifle Performance ------------- Evolutions (2) 1000 Regions Visited (6) 1200 Robots Destroyed (28) 140 Value Destroyed (669) 669 Prototype IDs (1) 20 Alien Tech Used (0) 0 Bonus (300) 300 TOTAL SCORE: 3329 Bonus ------- Aligned with FarCom 300 Cogmind --------- Core Integrity 0/700 Matter 239/350 Energy 1860/1860 System Corruption 0% Temperature Warning (346) Movement Walking (120) Location -8/Materials Parts ------- > --- POWER (2) -------- Ion Engine Light Nuclear Core > --- PROPULSION (3) --- Carbon-fiber Leg Carbon-fiber Leg Improved Carbon-fiber Leg > --- UTILITY (3) ------ Superbattery Targeting Computer > --- WEAPON (3) ------- Gatling Laser Assault Rifle > --- INVENTORY (0) ---- (None) Peak State ------------ > --- POWER ------------ Ion Engine Light Nuclear Core > --- PROPULSION ------- Carbon-fiber Leg Carbon-fiber Leg Improved Carbon-fiber Leg > --- UTILITY ---------- Superbattery Targeting Computer > --- WEAPON ----------- Gatling Laser Assault Rifle > --- INVENTORY -------- (None) [Rating: 30] Favorites ----------- Power Ion Engine Engine Ion Engine Power Core Light Nuclear Core Propulsion Improved Aluminum Leg Leg Improved Aluminum Leg Utility Targeting Computer Device Terrain Scanner Storage Superbattery Processor Targeting Computer Weapon Assault Rifle Energy Gun Gatling Laser Ballistic Gun Assault Rifle Special Weapon Remote Datajack Build | -11 -10 -9 -9 -9 -8 -8 ------- Run | Yrd Mat Mat Min Exi Min Mat Slots Evolved 7 | . 1 4 . . . 2 Power 1 | . . . . . . 1 Propulsion 2 | . . 2 . . . . Utility 2 | . . 1 . . . 1 Weapon 2 | . 1 1 . . . . Parts Attached 15 | . 2 6 3 1 . 3 Power 1 | . . . . . . 1 Engine . | . . . . . . . Core 1 | . . . . . . 1 Reactor . | . . . . . . . Propulsion 6 | . . 3 1 . . 2 Treads . | . . . . . . . Leg 6 | . . 3 1 . . 2 Wheel . | . . . . . . . Hover . | . . . . . . . Flight . | . . . . . . . Utility 3 | . 1 1 . 1 . . Device 1 | . . 1 . . . . Storage 1 | . . . . 1 . . Processor 1 | . 1 . . . . . Hackware . | . . . . . . . Protection . | . . . . . . . Artifact . | . . . . . . . Weapon 5 | . 1 2 2 . . . Energy Gun 3 | . 1 1 1 . . . Energy Cannon . | . . . . . . . Ballistic Gun 1 | . . 1 . . . . Ballistic Cannon . | . . . . . . . Launcher . | . . . . . . . Special Weapon 1 | . . . 1 . . . Impact Weapon . | . . . . . . . Slashing Weapon . | . . . . . . . Piercing Weapon . | . . . . . . . Special Melee Weapon . | . . . . . . . Unidentified Prototypes 1 | . . . . 1 . . Parts Lost . | . . . . . . . Power . | . . . . . . . Propulsion . | . . . . . . . Utility . | . . . . . . . Weapon . | . . . . . . . Highest Loss Streak . | . . . . . . . To Critical Strikes . | . . . . . . . Average Slot Usage (%) 94 | . 95 91 100 100 97 77 Engine 13 | . 22 13 11 11 11 9 Leg 26 | . 22 16 33 33 33 27 Device 6 | . . 12 11 5 . . Storage 2 | . . . . 6 11 9 Processor 12 | . 19 13 11 11 11 9 Energy Gun 11 | . 10 13 11 11 11 9 Ballistic Gun 15 | . 22 21 12 11 11 9 Special Weapon 4 | . . . 9 11 8 . Peak Build Rating 30 | . 5 13 20 29 29 30 Average Rating 16 | . 4 7 19 24 27 27 On Entrance 14 | 3 3 5 13 20 29 25 Naked Turns . | . . . . . . . Heaviest Build 20 | 7 8 12 15 18 18 20 Greatest Support 53 | 10 10 44 49 49 49 53 Greatest Overweight (x) . | . . . . . . . Average Overweight (x) . | . . . . . . . Largest Inventory Capacity . | . . . . . . . Average Capacity . | . . . . . . . Most Carried . | . . . . . . . Average Carried . | . . . . . . . Final Capacity . | . . . . . . . Final Carried . | . . . . . . . Class Distribution -------------------- 65% | Skirmisher 20% | Mutant 13% | Gunner Dominant Class ---------------- Mutant | -10/Materials Skirmisher | -9/Materials Skirmisher | -9/Mines Gunner | -9/Exiles Skirmisher | -8/Mines Skirmisher | -8/Materials Resources | -11 -10 -9 -9 -9 -8 -8 ----------- Run | Yrd Mat Mat Min Exi Min Mat Matter Collected 543 | 200 83 165 73 . 22 . Remotely . | . . . . . . . Salvage Created 649 | . 70 312 76 . 108 83 Parts 57 | . 11 26 6 . 7 7 Haulers Intercepted . | . . . . . . . Recyclers Shooed . | . . . . . . . Parts Field Recycled . | . . . . . . . Retrieved Matter . | . . . . . . . Parts Self-Destructed . | . . . . . . . Prevented . | . . . . . . . Kills | -11 -10 -9 -9 -9 -8 -8 ------- Run | Yrd Mat Mat Min Exi Min Mat Combat Hostiles Destroyed 22 | . 3 9 4 . 2 4 Guns 22 | . 3 9 4 . 2 4 Classes Destroyed 7 | . 2 2 1 . 1 1 Recycler 1 | . . . . . 1 . Watcher 5 | . 2 2 . . . 1 Swarmer 11 | . 3 3 2 . 2 1 Grunt 8 | . . 5 1 . . 2 Sentry 1 | . . 1 . . . . Demolisher 1 | . . . 1 . . . Hunter 1 | . . . . . . 1 Best Kill Streak 6 | . 2 6 2 . 3 4 Combat Bots Only 5 | . 2 5 2 . 2 3 Max Kills in Single Turn 2 | . 1 1 2 . 1 1 Gunslinging 1 | . . . 1 . . . Exploded . | . . . . . . . Melee . | . . . . . . . Uniques/NPCs Destroyed . | . . . . . . . Combat | -11 -10 -9 -9 -9 -8 -8 -------- Run | Yrd Mat Mat Min Exi Min Mat Hostile Shots Fired 129 | . 32 60 11 . 5 21 Missed 28 | . 5 18 3 . 1 1 Damage Taken 1294 | . 228 470 277 . 33 286 Core 1060 | . 186 388 229 . 27 230 Absorbed by Shields . | . . . . . . . Redirected to Core 761 | . 132 251 166 . 18 194 Core Remaining (%) 67 | 100 71 . . . 32 . Volleys Fired 78 | . 27 26 11 . 3 11 Largest 3 | . 2 3 3 . 2 2 Hottest 120 | . 60 80 120 . 100 100 Shots Fired 145 | . 31 64 22 . 6 22 Gun 144 | . 31 64 21 . 6 22 Cannon . | . . . . . . . Launcher . | . . . . . . . Special 1 | . . . 1 . . . Kinetic 97 | . 27 45 11 . 3 11 Thermal 47 | . 4 19 10 . 3 11 Explosive . | . . . . . . . Electromagnetic . | . . . . . . . Robot Hit Streak 20 | . 5 17 12 . 15 20 Robot Miss Streak 4 | . 2 4 1 . 2 1 Penetration Max . | . . . . . . . Secondary Targets 5 | . . 3 1 . . 1 Max Gunslinging Chain 1 | . . 1 1 . . 1 Shots Hit Robots 105 | . 18 46 19 . 3 19 Core Hits 54 | . 6 19 11 . 4 14 Critical Kills . | . . . . . . . Critical Parts Destroyed . | . . . . . . . Critical Strikes . | . . . . . . . Melee Attacks . | . . . . . . . Impact . | . . . . . . . Slashing . | . . . . . . . Piercing . | . . . . . . . Sneak Attacks . | . . . . . . . Combat Hostiles . | . . . . . . . Follow-up Attacks . | . . . . . . . Damage Inflicted 1545 | . 226 485 379 . 57 398 Guns 1541 | . 226 485 379 . 57 394 Cannons . | . . . . . . . Explosions . | . . . . . . . Melee . | . . . . . . . Ramming 4 | . . . . . . 4 Kinetic 737 | . 205 353 90 . . 89 Thermal 804 | . 21 132 289 . 57 305 Explosive . | . . . . . . . Electromagnetic . | . . . . . . . Impact . | . . . . . . . Slashing . | . . . . . . . Piercing . | . . . . . . . Highest Corruption . | . . . . . . . Average Corruption . | . . . . . . . Corruption Purged . | . . . . . . . Corruption Blocked . | . . . . . . . Overload Shots . | . . . . . . . Overflow Damage . | . . . . . . . Projectiles . | . . . . . . . Explosions . | . . . . . . . Melee . | . . . . . . . Knockbacks . | . . . . . . . Impact . | . . . . . . . Kinetic . | . . . . . . . Secondary . | . . . . . . . Self-Inflicted Damage . | . . . . . . . Shots . | . . . . . . . Rammed . | . . . . . . . Targets Rammed 1 | . . . . . . 1 Kicked 1 | . . . . . . 1 Crushed . | . . . . . . . Highest Temperature 356 | . . 285 94 . 21 356 Average Temperature 94 | . . 129 40 . 14 117 Received Heat Transfer 303 | . . 180 24 . . 99 Effects 2 | . . 2 . . . . Interference 2 | . . 2 . . . . Siege Activations . | . . . . . . . Robots Corrupted . | . . . . . . . Combat Hostiles . | . . . . . . . Parts Fried . | . . . . . . . Impact Corruptions . | . . . . . . . Robots Melted . | . . . . . . . Combat Hostiles . | . . . . . . . Parts Melted 1 | . . . . . . 1 Heat Transferred 1825 | . 50 300 650 . 125 700 Parts Sabotaged . | . . . . . . . Parts Stolen . | . . . . . . . Parts Stripped . | . . . . . . . Power Chain Reactions . | . . . . . . . Alert | -11 -10 -9 -9 -9 -8 -8 ------- Run | Yrd Mat Mat Min Exi Min Mat Peak Influence 350 | . 99 350 246 . 55 204 Initial 136 | . . 41 136 . . 21 Average 136 | . 60 187 194 . 31 79 Maximum Alert Level 1 | . . 1 1 . . 1 Low Security (%) 78 | . 100 54 76 . 100 94 Level 1 21 | . . 45 23 . . 5 Level 2 . | . . . . . . . Level 3 . | . . . . . . . Level 4 . | . . . . . . . Level 5 . | . . . . . . . High Security . | . . . . . . . Max Security . | . . . . . . . Squads Dispatched 4 | . . 1 1 . . 2 Investigation 1 | . . . 1 . . . Extermination . | . . . . . . . Reinforcement 3 | . . 1 . . . 2 Assault . | . . . . . . . Garrison . | . . . . . . . Intercept . | . . . . . . . Searches Triggered . | . . . . . . . Construction Impeded . | . . . . . . . Haulers Reinforced . | . . . . . . . Active Scanning Responses . | . . . . . . . Cargo Convoy Interrupts . | . . . . . . . Stealth | -11 -10 -9 -9 -9 -8 -8 --------- Run | Yrd Mat Mat Min Exi Min Mat Distress Signals 4 | . 1 2 . . . 1 Communications Jammed . | . . . . . . . Distress Signals . | . . . . . . . Times Spotted 42 | . 5 16 10 . 3 8 Peak Tracking Total 7 | . 4 6 7 . 3 7 Tactical Retreats 1 | . . . . . . 1 Traps | -11 -10 -9 -9 -9 -8 -8 ------- Run | Yrd Mat Mat Min Exi Min Mat Traps Triggered . | . . . . . . . Indirectly . | . . . . . . . Trap Hack Attempts . | . . . . . . . Triggered . | . . . . . . . Disarmed . | . . . . . . . Reprogrammed . | . . . . . . . Reused . | . . . . . . . Traps Extracted . | . . . . . . . Installed . | . . . . . . . Triggered . | . . . . . . . Machines | -11 -10 -9 -9 -9 -8 -8 ---------- Run | Yrd Mat Mat Min Exi Min Mat Machines Disabled . | . . . . . . . Max in Single Turn . | . . . . . . . Machines Repaired . | . . . . . . . Machines Dismantled . | . . . . . . . Machines Sabotaged . | . . . . . . . Overloaded Fab Kills . | . . . . . . . Hacking | -11 -10 -9 -9 -9 -8 -8 --------- Run | Yrd Mat Mat Min Exi Min Mat Machines Accessed 1 | . . . 1 . . . Terminals . | . . . . . . . Fabricators . | . . . . . . . Repair Stations . | . . . . . . . Recycling Units . | . . . . . . . Scanalyzers . | . . . . . . . Garrison Access . | . . . . . . . Total Hacks 1 | . . . 1 . . . Successful 1 | . . . 1 . . . Failed . | . . . . . . . Catastrophic . | . . . . . . . Database Lockouts . | . . . . . . . Manual 1 | . . . . 1 . . Terminals . | . . . . . . . Fabricators . | . . . . . . . Repair Stations . | . . . . . . . Recycling Units . | . . . . . . . Scanalyzers . | . . . . . . . Garrison Access . | . . . . . . . Terminal Hacks 1 | . . . 1 . . . Open Door 1 | . . . 1 . . . Fabricator Hacks . | . . . . . . . Repair Station Hacks . | . . . . . . . Recycling Unit Hacks . | . . . . . . . Scanalyzer . | . . . . . . . Garrison Access Hacks . | . . . . . . . Unauthorized Hacks . | . . . . . . . Terminals . | . . . . . . . Fabricators . | . . . . . . . Repair Stations . | . . . . . . . Recycling Units . | . . . . . . . Scanalyzers . | . . . . . . . Garrison Access . | . . . . . . . Data Cores Recovered . | . . . . . . . Used . | . . . . . . . Hacking Detections . | . . . . . . . Full Trace Events . | . . . . . . . Feedback Events . | . . . . . . . Feedback Blocked . | . . . . . . . Robot Schematics Acquired . | . . . . . . . Robots Built . | . . . . . . . Authchips . | . . . . . . . Time . | . . . . . . . Total Robot Build Rating . | . . . . . . . Part Schematics Acquired . | . . . . . . . Parts Built . | . . . . . . . Authchips . | . . . . . . . Time . | . . . . . . . Total Part Build Rating . | . . . . . . . Parts Repaired . | . . . . . . . Time . | . . . . . . . Parts Recycled . | . . . . . . . Recycled Matter . | . . . . . . . Retrieved Matter . | . . . . . . . Retrieved Components . | . . . . . . . Parts Scanalyzed . | . . . . . . . Part Schematics Acquired . | . . . . . . . Parts Damaged . | . . . . . . . Bothacking | -11 -10 -9 -9 -9 -8 -8 ------------ Run | Yrd Mat Mat Min Exi Min Mat Used RIF Installer . | . . . . . . . Robots Hacked 1 | . . . 1 . . . Non-combat . | . . . . . . . Combat 1 | . . . 1 . . . Robot Hacks Applied 1 | . . . 1 . . . parse_system 1 | . . . 1 . . . Relay Couplers Released . | . . . . . . . Fabnet Peak Effective % . | . . . . . . . Robots Rewired . | . . . . . . . Allies Hacked . | . . . . . . . Hacks Repelled . | . . . . . . . Allies | -11 -10 -9 -9 -9 -8 -8 -------- Run | Yrd Mat Mat Min Exi Min Mat Total Allies . | . . . . . . . Largest Group . | . . . . . . . Highest-Rated Group . | . . . . . . . Highest-Rated Ally . | . . . . . . . Total Orders . | . . . . . . . Ally Attacks . | . . . . . . . Total Damage . | . . . . . . . Kills . | . . . . . . . Allies Corrupted . | . . . . . . . Allies Melted . | . . . . . . . Intel | -11 -10 -9 -9 -9 -8 -8 ------- Run | Yrd Mat Mat Min Exi Min Mat Robot Analysis Total . | . . . . . . . Derelict Logs Recovered 1 | . . . 1 . . . Drone Launches . | . . . . . . . Drone Recoveries . | . . . . . . . Exploration | -11 -10 -9 -9 -9 -8 -8 ------------- Run | Yrd Mat Mat Min Exi Min Mat Turns Passed 1334 | . 253 315 267 324 49 126 Spaces Moved 887 | 1 161 173 184 269 33 66 Core . | . . . . . . . Treads . | . . . . . . . Legs 887 | 1 161 173 184 269 33 66 Wheels . | . . . . . . . Hover . | . . . . . . . Flight . | . . . . . . . Fastest Speed 120 | 120 120 120 120 120 120 120 Average Speed 120 | 120 120 120 120 120 120 120 Slowest Speed 120 | 120 120 120 120 120 120 120 Overloaded Moves . | . . . . . . . Propulsion Burnouts . | . . . . . . . Robots Hopped . | . . . . . . . Cave-ins Triggered . | . . . . . . . Exploration Rate (%) 25 | 2 25 20 34 68 15 14 Regions Visited 6 Branch Regions 3 Pre-discovered Areas . | . . . . . . . Known Exits Taken . | . . . . . . . Unknown Exits Taken 6 | 1 1 1 1 1 1 . Scrap Searched 1 | . . . 1 . . . Spaces Dug . | . . . . . . . Terrain Destroyed . | . . . . . . . Melee . | . . . . . . . Projectile . | . . . . . . . AOE . | . . . . . . . Terrain Rammed . | . . . . . . . Walls Destroyed . | . . . . . . . Machines Disabled . | . . . . . . . Actions | -11 -10 -9 -9 -9 -8 -8 --------- Run | Yrd Mat Mat Min Exi Min Mat Total 1018 | . 189 228 208 270 36 87 Wait 16 | . . 6 5 . . 5 Move 881 | . 160 172 183 268 32 66 Hop . | . . . . . . . Pick Up . | . . . . . . . Fast Attach 8 | . 2 4 . 1 . 1 Attach . | . . . . . . . Detach . | . . . . . . . Swap 7 | . . 2 3 . . 2 Drop 7 | . . 2 2 1 1 1 Fire 78 | . 27 26 11 . 3 11 Melee . | . . . . . . . Ram . | . . . . . . . Kick 1 | . . . . . . 1 Crush . | . . . . . . . Escape Stasis . | . . . . . . . Rewire 4 | . . . 4 . . . Trap . | . . . . . . . Miscellaneous 16 | . . 16 . . . . Route ------- -11/Scrapyard -10/Materials -9/Materials (discovered 2 exits: *Min x2) -9/Mines (discovered 2 exits: [*Mat] / *Exi) -9/Exiles -8/Mines -8/Materials (discovered 1 exit: Fac) History --------- Turn | Location | Event 1 | -11/Scrapyard | Discovered new exit (range 0) 1 | -11/Scrapyard | Entered Materials 100 | -10/Materials | Upgraded with Weapon slot (x1) 240 | -10/Materials | Discovered new exit (range 9) 254 | -10/Materials | Entered another Materials area 256 | -9/Materials | Reached level 2 262 | -9/Materials | Upgraded with Utility slot (x1) 262 | -9/Materials | Upgraded with Weapon slot (x1) 439 | -9/Materials | Core integrity fell below 50% 474 | -9/Materials | Discovered new exit (range 9) 485 | -9/Materials | Discovered new exit (range 10) 497 | -9/Materials | Reached level 3 500 | -9/Materials | Upgraded with Propulsion slot (x2) 569 | -9/Materials | Entered Mines 570 | -9/Mines | Assembled infested the area 572 | -9/Mines | Met a Derelict shopkeep closing up shop 616 | -9/Mines | Build established: Skirmisher 646 | -9/Mines | Met 8R-AWN 685 | -9/Mines | Discovered new exit (range 14) 716 | -9/Mines | Received a Rocket Launcher from a helpful Derelict 829 | -9/Mines | Discovered new exit (range 5) 836 | -9/Mines | Entered Exiles 866 | -9/Exiles | Welcomed by 8R-AWN 886 | -9/Exiles | Met EX-HEX 937 | -9/Exiles | Met EX-BIN 950 | -9/Exiles | Aligned with FarCom system 952 | -9/Exiles | Given EX-Vault access code 979 | -9/Exiles | Opened EX-Vault 983 | -9/Exiles | Found Prototype Storage 983 | -9/Exiles | Identified Superbattery 1006 | -9/Exiles | Warned to stay clear of 0b10 Research branches 1040 | -9/Exiles | Met EX-DEC 1144 | -9/Exiles | Discovered new exit (range 14) 1160 | -9/Exiles | Left Exiles lab with Superbattery 1160 | -9/Exiles | Entered Mines 1162 | -8/Mines | Reached level 4 1198 | -8/Mines | Discovered new exit (range 10) 1209 | -8/Mines | Entered Materials 1210 | -8/Materials | Identified exit to Factory 1210 | -8/Materials | Core integrity fell below 50% 1211 | -8/Materials | Reached level 5 1211 | -8/Materials | Upgraded with Power slot (x1) 1211 | -8/Materials | Upgraded with Utility slot (x1) 1306 | -8/Materials | Core integrity fell below 20% 1335 | -8/Materials | Destroyed by Y-45 Defender with Beam Rifle Last Messages --------------- 01289_ M-13 Machinist fits Backup Plating I on R-06 Scavenger. 01290_ ALERT: Hostiles spotted, dispatching reinforcements to Terminal M005. 01291_ W-25 Informer destroyed. 01291_ R-06 Scavenger collects Imp. Aluminum Leg. 01296_ M-13 Machinist fits Backup Plating I on R-06 Scavenger. 01297_ K-01 Serf collects debris. 01298_ W-25 Informer sends out distress signal. 01298_ K-01 Serf collects debris. 01305_ S-10 Pest destroyed. 01305_ R-06 Scavenger collects Imp. Sensor Array. 01315_ G-47 Trooper destroyed. 01322_ Protomatter-38 decays. 01328_ Particle Gun melted. 01328_ G-47 Trooper destroyed. 01328_ Switching to secondary target: Y-45 Defender. 01334_ K-01 Serf collects debris. 01334_ R-06 Scavenger collects Aluminum Leg. Map ----- +----------------------------------------------------+ | # # #??????????????????????????????????? | | # # #??????????????????????????????????? | | # #? #??????????????????????????????????? | | # #?#########??????????????????????????????????? | | # #????????????????????????????????????????????? | | # #????????????????????????????????????????????? | | / #????????????????????????????????????????????? | | # #????????????????????????????????????????????? | | # #????????????????????????s???????????????????? | | # ##???????????????????????????????????????????? | | #???????????????????????????????????????????? | | #???????????????????????????????????????????? | | T + ??????????????????????w???????????????????? | | # ????????????????????????????????????????? | | # ???????????????????????????????????????? | | ######? ?????????????????????????????????????? | | ???######????????????????????????????????????? | | ??????????????????????????#??????????????????? | | "" ?????????????????????????? #??????????????????? | | "" ??????????################ ########???????????? | | ""???????????# ! #???????????? | | ???????????# !% #???????????? | | +############# r = #???????????? | | kYr #???????????? | | #######%### !*! #???????????? | | #?# %@#????????? #?????????? | | ############## #?# """#??????????????????????? | | ?????????????# #?# """#??????????????????????? | | ?????????????# #?# """#??????????????????????? | | ?????????????# #?# #??????????????????????? | | ?????????????# #?# #??????????????????????? | | ?????????????# g#?########?????s????????????????? | | ?????????????# #?????????????s?????????????????? | | ?????????????#g #????????????s??????????